bitfinex/quotes_ETHUSD_20250524
["timestamp","ask_amount","ask_price","bid_price","bid_amount"]
[1748097099985,3.92805927,2545.8,2545.6,31.593]
[1748097100202,3.92805927,2545.8,2545.7,11.768]
[1748097100508,5.43786586,2545.9,2545.7,11.768]
[1748097101594,3.92764286,2546.1,2545.7,11.768]
[1748097101767,3.92775526,2546.0,2545.7,11.768]
[1748097102096,1.5099,2546.4,2545.8,26.418]
[1748097102280,5.43809263,2545.7,2545.6,16.944]
[1748097102478,5.43809263,2545.7,2545.6,31.594]
[1748097102793,5.43809263,2545.7,2545.6,43.362]
[1748097103006,3.92896432,2545.2,2545.1,0.05]
[1748097103315,5.43877103,2545.3,2545.1,14.701]
[1748097103810,5.43877103,2545.3,2545.2,14.651]
[1748097104307,5.43877103,2545.3,2545.2,26.419]
[1748097104992,3.92896432,2545.2,2545.1,0.05]
[1748097105169,3.92896432,2545.2,2545.1,26.469]
[1748097105369,3.92896432,2545.2,2545.1,14.701]
[1748097105575,3.92896432,2545.2,2545.1,26.469]
[1748097108816,3.92896432,2545.2,2545.1,14.701]
[1748097108966,3.92896432,2545.2,2545.1,26.471]
[1748097109165,3.92896432,2545.2,2545.1,43.421]
[1748097109887,1.5953,2546.1,2545.1,43.421]
[1748097110101,3.9281414,2545.8,2545.2,3.92883761]
[1748097110509,1.5953,2546.0,2545.1,47.35003989]
[1748097110664,3.92845608,2545.6,2545.1,47.35003989]
[1748097111098,3.92845608,2545.6,2545.1,47.35010545]
[1748097112311,7.08412555,2546.0,2545.3,3.92866569]
[1748097112463,7.08416597,2546.0,2545.3,3.92878342]
[1748097112669,3.92801309,2545.9,2545.3,3.92878342]
[1748097113064,3.92806779,2545.8,2545.3,3.92878342]
[1748097114326,1.5953,2546.0,2545.3,3.92878342]
[1748097114483,5.44259995,2546.3,2545.6,3.92824282]
[1748097114821,3.92742125,2546.2,2545.7,26.424]
[1748097115021,3.927826,2546.0,2545.8,14.653]
[1748097116487,1.5153,2546.3,2545.8,14.653]
[1748097116699,3.92756772,2546.2,2545.8,14.653]
[1748097117028,3.92759445,2546.1,2545.8,14.653]
[1748097119893,3.92713847,2546.4,2545.9,8.0]
[1748097120093,3.92740629,2546.3,2545.9,8.0]
[1748097120508,3.9267308,2546.7,2546.0,3.92772977]
[1748097120809,3.9266913,2546.7,2546.1,24.95]
[1748097121031,3.92716039,2546.4,2546.1,24.95]
[1748097121443,1.6398,2546.9,2546.3,3.92726701]
[1748097121615,3.92621323,2547.0,2546.5,8.0]
[1748097121937,3.92651197,2546.8,2546.5,8.0]
[1748097122257,3.92627443,2547.0,2546.5,8.0]
[1748097122410,3.92634665,2546.9,2546.5,8.0]
[1748097122618,3.9266042,2546.8,2546.5,8.0]
[1748097123734,3.92622246,2547.0,2546.5,8.0]
[1748097124031,3.92622246,2547.0,2546.5,11.92688293]
[1748097124390,3.92622246,2547.0,2546.5,10.61350306]
[1748097126503,1.6398,2547.2,2546.5,8.0]
[1748097126752,3.92621059,2547.0,2546.5,11.9268973]
[1748097126900,5.57916299,2547.6,2546.7,8.0]
[1748097127107,3.92606068,2547.1,2546.7,8.0]
[1748097127799,3.92590366,2547.2,2546.7,11.92660749]
[1748097127993,4.79724385,2548.6,2547.8,3.92495486]
[1748097128235,4.79724385,2548.6,2547.8,58.07247234]
[1748097128408,4.79724385,2548.6,2548.1,3.92449275]
[1748097128738,3.14334385,2548.6,2548.1,14.20854172]
[1748097128937,3.14334385,2548.6,2548.1,14.87028513]
[1748097129341,3.14334385,2548.6,2548.1,14.58137315]
[1748097129799,3.14334385,2548.6,2548.1,38.71432418]
[1748097130237,3.14334385,2548.6,2548.1,39.39255701]
[1748097130599,3.14334385,2548.6,2548.1,39.01972558]
[1748097131024,2.46530663,2548.2,2548.1,39.01972558]
[1748097131231,0.80120463,2548.2,2548.1,39.01972558]
[1748097131543,0.00100063,2548.2,2548.1,40.23825316]
[1748097132345,0.00100063,2548.2,2548.1,40.79322191]
[1748097132552,0.05,2548.9,2548.7,8.0]
[1748097132845,0.05,2548.9,2548.8,55.94294252]
[1748097133015,0.05,2548.9,2548.8,56.62117535]
[1748097133919,0.05,2548.9,2548.8,55.95264777]
[1748097135605,0.05,2548.9,2548.8,56.50264777]
[1748097135809,0.05,2548.9,2548.8,57.17117535]
[1748097136318,0.05,2548.9,2548.8,55.26541494]
[1748097136869,0.05,2548.9,2548.8,24.941]
[1748097137147,3.97326101,2548.9,2548.8,43.34]
[1748097137306,6.38589878,2548.9,2548.8,43.34]
[1748097137512,6.38589878,2548.9,2548.8,51.34]
[1748097137723,3.97326101,2548.9,2548.8,51.34]
[1748097138643,3.97326101,2548.9,2548.8,6.31322822]
[1748097138843,0.05,2548.9,2548.8,6.9817558]
[1748097139046,0.05,2548.9,2548.8,7.65998863]
[1748097139254,0.05,2548.9,2548.8,39.22998863]
[1748097139837,0.05,2548.9,2548.8,50.98898863]
[1748097140047,0.05,2548.9,2548.8,51.30698863]
[1748097140348,0.05,2548.9,2548.8,21.18412469]
[1748097140508,0.05,2548.9,2548.8,47.89812469]
[1748097140939,0.05,2548.9,2548.8,21.18412469]
[1748097141158,0.05,2548.9,2548.8,47.89812469]
[1748097141748,3.76851387,2549.0,2548.8,47.89812469]
[1748097141946,3.92301634,2549.1,2548.8,47.89812469]
[1748097142148,3.92301634,2549.1,2548.9,8.0]
[1748097142342,3.92301634,2549.1,2549.0,34.713]
[1748097142668,3.92301634,2549.1,2549.0,34.711]
[1748097144166,3.92301634,2549.1,2549.0,20.32961143]
[1748097144470,3.92326101,2548.9,2548.8,16.933]
[1748097144674,3.92326101,2548.9,2548.8,43.644]
[1748097145171,3.92326101,2548.9,2548.8,16.933]
[1748097145474,3.92326101,2548.9,2548.8,43.641]
[1748097145672,3.92344213,2548.8,2548.3,3.290262]
[1748097145875,3.92344213,2548.8,2548.4,14.952]
[1748097146170,3.92344213,2548.8,2548.5,8.0]
[1748097146758,3.92344213,2548.8,2548.7,8.0]
[1748097147862,5.47450923,2548.9,2548.7,8.0]
[1748097148379,3.92333597,2548.9,2548.7,8.0]
[1748097148674,3.92311468,2549.0,2548.7,8.0]
[1748097148871,3.92326101,2548.9,2548.5,8.0]
[1748097149077,3.92341494,2548.8,2548.7,8.0]
[1748097149734,3.92341494,2548.8,2548.7,34.708]
[1748097150263,5.47393588,2548.8,2548.7,34.708]
[1748097150652,5.47393588,2548.8,2548.7,32.64580888]
[1748097152175,5.47393588,2548.8,2548.7,5.93780888]
[1748097152383,6.46911915,2548.8,2548.7,32.64580888]
[1748097152540,6.46911915,2548.8,2548.7,5.93780888]
[1748097152871,3.92398553,2548.5,2547.9,3.92466788]
[1748097153089,3.92398553,2548.5,2548.0,47.56162911]
[1748097154072,3.92403738,2548.4,2548.0,20.85362911]
[1748097154275,3.92403738,2548.4,2548.1,14.953]
[1748097154276,3.92415139,2548.4,2548.1,14.953]
[1748097154437,3.92430574,2548.3,2548.2,26.71]
[1748097154643,3.92430574,2548.3,2548.2,34.71]
[1748097155373,3.92361132,2548.7,2548.3,8.0]
[1748097155574,5.15638721,2548.8,2548.5,8.0]
[1748097155780,3.92343174,2548.8,2548.4,0.59504309]
[1748097157178,3.92343174,2548.8,2548.3,11.92410836]
[1748097157677,3.92343174,2548.8,2548.5,0.37485645]
[1748097158071,1.55468892,2548.7,2548.5,0.37485645]
[1748097159199,1.55468892,2548.7,2548.6,24.93]
[1748097159438,1.55468892,2548.7,2548.6,25.30485645]
[1748097159749,3.92344445,2548.8,2548.7,8.0]
[1748097160079,6.1692411,2548.8,2548.7,8.0]
[1748097160285,6.1692411,2548.8,2548.7,34.71]
[1748097160484,6.1692411,2548.8,2548.7,8.0]
[1748097160690,6.1692411,2548.8,2548.7,34.71]
[1748097161054,6.1692411,2548.8,2548.7,35.08485645]
[1748097161995,9.80652251,2548.8,2548.7,35.08485645]
[1748097162402,9.80652251,2548.8,2548.7,32.46010577]
[1748097162809,9.80652251,2548.8,2548.7,32.08524932]
[1748097164867,9.80652251,2548.8,2548.7,26.71]
[1748097165607,9.80652251,2548.8,2548.7,27.0851225]
[1748097166399,3.92380692,2548.6,2548.1,3.61277826]
[1748097166567,3.92380692,2548.6,2548.2,14.953]
[1748097166766,3.92380692,2548.6,2548.3,8.0]
[1748097166984,3.92380692,2548.6,2548.5,8.0]
[1748097167605,3.92409947,2548.4,2548.1,0.62560827]
[1748097167768,3.92409947,2548.4,2548.3,8.0]
[1748097168406,3.92393718,2548.5,2548.3,8.0]
[1748097168774,3.92380692,2548.6,2548.4,26.71]
[1748097168976,3.92398835,2548.5,2548.4,34.71]
[1748097169170,3.92398835,2548.5,2548.4,51.64]
[1748097169570,3.92379068,2548.6,2548.5,8.0]
[1748097170498,3.92379068,2548.6,2548.5,6.3125257]
[1748097172012,5.49246805,2548.6,2548.5,6.3125257]
[1748097174219,6.08157817,2548.6,2548.5,18.0695257]
[1748097175627,6.08157817,2548.6,2548.5,32.9195257]
[1748097179832,6.08157817,2548.6,2548.5,21.1625257]
[1748097179998,6.08157817,2548.6,2548.5,32.9205257]
[1748097181929,5.49246805,2548.6,2548.5,32.9205257]
[1748097182441,1.56867737,2548.6,2548.5,38.38383366]
[1748097182594,8.59415709,2549.7,2549.0,8.0]
[1748097182799,3.92218387,2549.6,2549.2,8.0]
[1748097182995,7.0654884,2549.7,2549.4,8.0]
[1748097183207,7.06537389,2549.7,2549.6,8.0]
[1748097184633,3.14334385,2549.7,2549.6,8.0]
[1748097185037,7.06537389,2549.7,2549.6,8.0]
[1748097186344,3.92203004,2549.7,2549.6,8.37447565]
[1748097186714,3.92193428,2549.8,2549.6,8.37447565]
[1748097186958,3.92203004,2549.7,2549.6,7.06261187]
[1748097187172,3.92195475,2549.8,2549.6,7.06261187]
[1748097187547,3.97177265,2549.9,2549.6,7.06261187]
[1748097187548,0.05,2549.9,2549.7,0.59399619]
[1748097187851,3.97172242,2549.9,2549.8,14.847]
[1748097188032,0.05,2549.9,2549.8,14.847]
[1748097188928,0.05,2549.9,2549.8,22.847]
[1748097192971,0.05,2549.9,2549.8,23.96690397]
[1748097193129,0.05,2549.9,2549.8,27.88878019]
[1748097193335,0.05,2549.9,2549.8,28.48277638]
[1748097193569,3.9205762,2550.7,2550.2,8.0]
[1748097193776,3.92038029,2550.8,2550.4,8.0]
[1748097193954,3.92073574,2550.6,2550.5,24.924]
[1748097195335,3.92073574,2550.6,2550.5,51.522]
[1748097195537,6.32266053,2550.6,2550.5,24.924]
[1748097195746,6.32266053,2550.6,2550.5,51.522]
[1748097197099,6.32266053,2550.6,2550.5,51.516]
[1748097200615,6.32266053,2550.6,2550.5,51.544]
[1748097204905,4.70486053,2550.6,2550.5,51.544]
[1748097205276,4.70486053,2550.6,2550.5,51.543]
[1748097207812,4.70486053,2550.6,2550.5,50.23142843]
[1748097210764,0.05,2550.9,2550.6,8.0]
[1748097210900,0.05,2550.9,2550.6,11.92058285]
[1748097211102,0.05,2550.9,2550.7,1.12739782]
[1748097211421,0.05,2550.9,2550.7,1.16660056]
[1748097211729,0.05,2550.9,2550.8,0.37358895]
[1748097211933,0.05,2550.9,2550.8,0.96758514]
[1748097212230,0.05,2550.9,2550.8,1.50098677]
[1748097213517,0.05,2550.9,2550.8,0.90699058]
[1748097213720,0.05,2550.9,2550.8,0.37358895]
[1748097216456,0.05,2550.9,2550.8,8.37358895]
[1748097216752,0.05,2550.9,2550.8,0.37358895]
[1748097217449,0.05,2550.9,2550.8,8.96758514]
[1748097218127,0.05,2550.9,2550.8,0.96758514]
[1748097218853,0.05,2550.9,2550.8,8.96758514]
[1748097220055,0.05,2550.9,2550.8,0.96758514]
[1748097220225,3.97018503,2550.9,2550.8,34.98758895]
[1748097220425,0.05,2550.9,2550.8,34.98758895]
[1748097220630,3.97018503,2550.9,2550.8,34.98758895]
[1748097221946,3.97018503,2550.9,2550.8,8.37358895]
[1748097222253,6.38640842,2550.9,2550.8,26.98658895]
[1748097222452,6.38640842,2550.9,2550.8,34.98658895]
[1748097222954,6.38640842,2550.9,2550.8,34.613]
[1748097224269,5.59738503,2550.9,2550.8,34.613]
[1748097225765,5.59738503,2550.9,2550.8,22.866]
[1748097226065,5.59738503,2550.9,2550.8,34.613]
[1748097228973,3.97018503,2550.9,2550.8,34.613]
[1748097229331,3.97018503,2550.9,2550.8,18.43566333]
[1748097229535,3.97018503,2550.9,2550.8,33.30166333]
[1748097229736,4.92522842,2550.9,2550.8,33.30166333]
[1748097231243,3.97018503,2550.9,2550.8,33.30166333]
[1748097233473,3.97018503,2550.9,2550.8,6.68866333]
[1748097233684,3.97018503,2550.9,2550.8,33.28166333]
[1748097237695,5.53848503,2550.9,2550.8,6.68866333]
[1748097237876,3.92110732,2550.3,2550.2,0.46722169]
[1748097238198,3.92110732,2550.3,2550.2,25.38322169]
[1748097238418,3.92110732,2550.3,2550.2,40.22922169]
[1748097238560,3.92110732,2550.3,2550.2,51.88331115]
[1748097240297,3.92110732,2550.3,2550.2,51.509]
[1748097244703,3.92110732,2550.3,2550.2,24.916]
[1748097244878,5.05881422,2550.3,2550.2,51.512]
[1748097245283,3.92110732,2550.3,2550.2,51.512]
[1748097245804,5.88752731,2550.5,2550.3,8.0]
[1748097245980,3.92095357,2550.4,2550.3,8.0]
[1748097247112,3.92095357,2550.4,2550.3,34.596]
[1748097250178,1.5768,2550.7,2550.3,34.596]
[1748097250179,1.96668542,2550.6,2550.3,34.596]
[1748097250383,3.92091329,2550.5,2550.3,34.596]
[1748097250791,3.92095357,2550.4,2550.3,34.596]
[1748097250996,3.92095357,2550.4,2550.3,33.28440604]
[1748097251384,3.92095357,2550.4,2550.3,33.65892505]
[1748097255197,5.88726023,2550.7,2550.3,33.65892505]
[1748097255527,3.92080187,2550.5,2550.3,33.65892505]
[1748097256338,3.92080187,2550.5,2550.4,0.37451901]
[1748097260523,3.92080187,2550.5,2550.4,25.29251901]
[1748097265040,3.92080187,2550.5,2550.4,40.09851901]
[1748097265641,3.92080187,2550.5,2550.4,51.84651901]
[1748097276861,3.92080187,2550.5,2550.4,40.09851901]
[1748097277046,5.47770187,2550.5,2550.4,51.84651901]
[1748097277561,5.47770187,2550.5,2550.4,40.09851901]
[1748097277861,3.92080187,2550.5,2550.4,51.84651901]
[1748097279669,7.46522674,2550.5,2550.4,51.84651901]
[1748097281939,3.54442487,2550.5,2550.4,52.3305058]
[1748097282138,3.54442487,2550.5,2550.4,51.84651901]
[1748097282649,3.54442487,2550.5,2550.4,55.76747258]
[1748097282836,3.54442487,2550.5,2550.4,57.29040781]
[1748097284569,2.37142487,2550.5,2550.4,57.29040781]
[1748097285266,0.79368542,2550.7,2550.6,3.92064612]
[1748097285468,0.79368542,2550.7,2550.6,11.92064612]
[1748097286153,0.79368542,2550.7,2550.6,12.47064612]
[1748097287243,0.79368542,2550.7,2550.6,13.46951721]
[1748097287445,0.79368542,2550.7,2550.6,13.95846565]
[1748097288366,0.05,2550.9,2550.8,3.92033871]
[1748097288528,0.05,2550.9,2550.8,12.47033871]
[1748097290267,0.05,2550.9,2550.8,12.84485772]
[1748097294557,0.05,2550.9,2550.8,13.31174257]
[1748097295885,0.05,2550.9,2550.8,12.84485772]
[1748097299113,0.05,2550.9,2550.8,8.84107096]
[1748097299254,0.05,2550.9,2550.8,35.31707096]
[1748097299961,0.05,2550.9,2550.8,39.23740967]
[1748097300591,0.05,2550.9,2550.8,38.77085772]
[1748097300768,0.05,2550.9,2550.8,27.02585772]
[1748097300970,0.05,2550.9,2550.8,34.85051901]
[1748097301165,3.97018503,2550.9,2550.8,26.85051901]
[1748097301378,1.6768,2550.9,2550.8,26.84951901]
[1748097301583,5.59698503,2550.9,2550.8,34.84951901]
[1748097301780,5.59698503,2550.9,2550.8,0.37451901]
[1748097301984,5.59698503,2550.9,2550.8,26.84951901]
[1748097302398,3.9203536,2550.8,2550.4,16.918]
[1748097302695,3.9203536,2550.8,2550.6,8.0]
[1748097303056,3.92036248,2550.8,2550.7,14.73]
[1748097303260,3.92036248,2550.8,2550.7,26.475]
[1748097303465,3.92036248,2550.8,2550.7,34.475]
[1748097305466,3.92036248,2550.8,2550.7,8.0]
[1748097305467,5.47166248,2550.8,2550.7,8.0]
[1748097305805,6.41584952,2550.8,2550.7,34.476]
[1748097306184,5.47166248,2550.8,2550.7,34.476]
[1748097308413,5.47166248,2550.8,2550.7,34.477]
[1748097310484,3.97029125,2550.9,2550.8,8.0]
[1748097312008,0.05,2550.9,2550.8,8.37407861]
[1748097312797,3.97018503,2550.9,2550.8,8.37407861]
[1748097312987,0.05,2550.9,2550.8,8.37407861]
[1748097313185,3.97018503,2550.9,2550.8,8.37407861]
[1748097315410,0.05,2550.9,2550.8,8.37407861]
[1748097316011,3.97018503,2550.9,2550.8,8.37407861]
[1748097318321,0.05,2550.9,2550.8,8.37407861]
[1748097319179,0.05,2550.9,2550.8,25.28907861]
[1748097320620,3.97018503,2550.9,2550.8,25.28907861]
[1748097320922,3.97018503,2550.9,2550.8,51.76807861]
[1748097324822,3.97018503,2550.9,2550.8,52.3238961]
[1748097325021,0.05,2550.9,2550.8,51.76807861]
[1748097328833,3.97018503,2550.9,2550.8,25.28907861]
[1748097329137,3.97018503,2550.9,2550.8,51.77107861]
[1748097330428,3.97018503,2550.9,2550.8,40.02507861]
[1748097330623,3.97018503,2550.9,2550.8,51.77107861]
[1748097331426,0.05,2550.9,2550.8,51.77107861]
[1748097331794,3.97018503,2550.9,2550.8,51.77107861]
[1748097333316,0.05,2550.9,2550.8,51.77107861]
[1748097340341,0.05,2550.9,2550.8,52.23763056]
[1748097341340,3.97018503,2550.9,2550.8,52.23763056]
[1748097341645,0.05,2550.9,2550.8,52.23763056]
[1748097342900,3.97018503,2550.9,2550.8,52.23763056]
[1748097343307,0.05,2550.9,2550.8,52.23763056]
[1748097343537,3.97018503,2550.9,2550.8,52.23763056]
[1748097344843,0.05,2550.9,2550.8,52.23763056]
[1748097345146,3.97018503,2550.9,2550.8,52.23763056]
[1748097345546,0.05,2550.9,2550.8,52.23763056]
[1748097351053,3.97018503,2550.9,2550.8,52.23763056]
[1748097351754,3.97018503,2550.9,2550.8,40.49163056]
[1748097351935,3.97018503,2550.9,2550.8,52.23763056]
[1748097352139,0.05,2550.9,2550.8,52.23763056]
[1748097357154,3.97018503,2550.9,2550.8,52.23763056]
[1748097357655,0.05,2550.9,2550.8,52.23763056]
[1748097359064,0.05,2550.9,2550.8,40.49163056]
[1748097359244,0.05,2550.9,2550.8,52.23763056]
[1748097360235,3.97018503,2550.9,2550.8,52.23763056]
[1748097360772,3.97018503,2550.9,2550.8,51.77107861]
[1748097360970,3.97018503,2550.9,2550.8,40.02507861]
[1748097361171,3.97018503,2550.9,2550.8,51.77107861]
[1748097361367,3.97018503,2550.9,2550.8,25.28907861]
[1748097361672,5.49278503,2550.9,2550.8,51.71107861]
[1748097362938,3.97018503,2550.9,2550.8,51.71107861]
[1748097363473,0.05,2550.9,2550.8,51.71107861]
[1748097363867,3.97018503,2550.9,2550.8,39.96507861]
[1748097364079,3.97018503,2550.9,2550.8,51.71107861]
[1748097364370,0.05,2550.9,2550.8,51.71107861]
[1748097364781,3.97018503,2550.9,2550.8,51.71107861]
[1748097367598,5.54478503,2550.9,2550.8,25.28907861]
[1748097367915,8.0658335,2550.9,2550.8,31.96607861]
[1748097368299,8.43295569,2550.9,2550.8,31.96607861]
[1748097368461,8.43295569,2550.9,2550.8,31.592]
[1748097368661,8.43295569,2550.9,2550.8,39.592]
[1748097368880,8.0658335,2550.9,2550.8,39.592]
[1748097369061,8.43295657,2550.9,2550.8,39.592]
[1748097369500,10.537908,2550.9,2550.8,39.592]
[1748097369700,10.537908,2550.9,2550.8,21.36537308]
[1748097369893,10.17078493,2550.9,2550.8,21.36537308]
[1748097370118,10.53790833,2550.9,2550.8,21.36537308]
[1748097370789,10.53790833,2550.9,2550.8,33.11237308]
[1748097371102,3.92172242,2549.9,2549.7,0.46655195]
[1748097371313,3.92179819,2549.9,2549.8,11.747]
[1748097371805,3.92179819,2549.9,2549.8,19.747]
[1748097375311,3.92179819,2549.9,2549.8,19.748]
[1748097377813,3.92179819,2549.9,2549.8,8.0]
[1748097378019,3.92179819,2549.9,2549.8,19.749]
[1748097378221,3.92156862,2550.0,2549.9,8.0]
[1748097378619,3.92145819,2550.1,2549.9,8.0]
[1748097378817,9.92002816,2551.1,2549.9,8.0]
[1748097378818,3.92156862,2550.0,2549.9,8.0]
[1748097379183,3.92156862,2550.0,2549.9,39.601]
[1748097388037,3.92156862,2550.0,2549.9,51.351]
[1748097398449,3.92156862,2550.0,2549.9,51.72645997]
[1748097401544,1.6313,2550.6,2549.9,56.67496192]
[1748097401744,3.9209278,2550.5,2550.0,0.47102389]
[1748097401955,3.9209278,2550.5,2550.1,8.0]
[1748097402946,3.92095422,2550.4,2550.2,0.37545997]
[1748097403143,3.92095422,2550.4,2550.3,19.751]
[1748097403456,3.97019782,2550.9,2550.4,8.0]
[1748097403457,3.92080916,2550.5,2550.4,8.0]
[1748097403651,3.92080916,2550.5,2550.4,22.68]
[1748097403867,5.55168823,2550.8,2550.4,22.68]
[1748097404034,3.92057208,2550.7,2550.4,22.68]
[1748097405161,3.92057208,2550.7,2550.5,0.37545997]
[1748097406649,3.92057208,2550.7,2550.6,0.37545997]
[1748097407661,3.92057208,2550.7,2550.4,22.68]
[1748097408962,3.92057208,2550.7,2550.5,0.37422808]
[1748097409664,3.92057208,2550.7,2550.6,24.919]
[1748097414257,3.92057208,2550.7,2550.6,36.668]
[1748097420782,3.92042175,2550.8,2550.7,8.0]
[1748097420947,3.97022656,2550.9,2550.7,8.0]
[1748097420948,0.05,2550.9,2550.7,8.0]
[1748097421283,0.05,2550.9,2550.8,11.92033871]
[1748097421648,0.05,2550.9,2550.8,12.35210906]
[1748097421843,0.05,2550.9,2550.8,8.0]
[1748097422060,0.05,2550.9,2550.8,34.42]
[1748097422748,0.05,2550.9,2550.8,34.79387932]
[1748097439092,3.97018503,2550.9,2550.8,23.04587932]
[1748097439291,3.97018503,2550.9,2550.8,34.79187932]
[1748097439810,3.97018503,2550.9,2550.8,26.78887932]
[1748097440109,4.91084934,2550.9,2550.8,34.78887932]
[1748097440893,4.91084934,2550.9,2550.8,34.415]
[1748097441079,6.42724934,2550.9,2550.8,34.415]
[1748097443951,6.42724934,2550.9,2550.8,8.0]
[1748097444247,6.42724934,2550.9,2550.8,34.416]
[1748097445205,6.42724934,2550.9,2550.8,8.0]
[1748097445405,6.42724934,2550.9,2550.8,34.411]
[1748097446130,0.05,2550.9,2550.8,34.84277035]
[1748097446640,0.05,2550.9,2550.8,34.411]
[1748097447140,0.05,2550.9,2550.8,35.25160918]
[1748097448546,0.05,2550.9,2550.8,39.17194789]
[1748097448757,3.91964101,2551.3,2550.9,8.0]
[1748097449254,3.91964101,2551.3,2551.0,0.03919618]
[1748097449634,3.91964101,2551.3,2550.9,8.0]
[1748097449837,3.91977486,2551.2,2551.1,0.37405723]
[1748097451362,3.91977486,2551.2,2551.0,0.37405723]
[1748097451857,3.91977486,2551.2,2551.1,16.914]
[1748097452038,3.91977486,2551.2,2551.1,24.914]
[1748097452439,3.91977486,2551.2,2551.1,25.28805723]
[1748097454974,3.91961171,2551.3,2551.2,8.0]
[1748097455132,3.9195016,2551.4,2551.2,8.0]
[1748097455332,3.9195016,2551.4,2551.3,34.408]
[1748097456859,3.9195016,2551.4,2551.3,34.78205723]
[1748097457351,3.9192875,2551.5,2551.4,8.0]
[1748097457352,3.91926317,2551.5,2551.4,8.0]
[1748097458083,3.91926317,2551.5,2551.4,24.913]
[1748097464492,5.52676317,2551.5,2551.4,36.658]
[1748097464690,6.47135044,2551.5,2551.4,36.658]
[1748097466590,5.52676317,2551.5,2551.4,36.658]
[1748097469457,3.91926317,2551.5,2551.4,36.658]
[1748097472206,3.91926317,2551.5,2551.4,38.49836576]
[1748097474873,3.91926317,2551.5,2551.4,53.16036576]
[1748097476402,3.91926317,2551.5,2551.4,53.53551297]
[1748097479121,6.69157419,2551.5,2551.4,39.94514721]
[1748097479416,6.69157419,2551.5,2551.4,53.53051297]
[1748097480515,6.69157419,2551.5,2551.4,53.15536576]
[1748097480720,10.24407163,2551.5,2551.4,53.15536576]
[1748097481019,7.47176061,2551.5,2551.4,53.15536576]
[1748097481232,7.47176061,2551.5,2551.4,51.84424233]
[1748097482409,3.91926317,2551.5,2551.4,51.84424233]
[1748097484519,3.91926317,2551.5,2551.4,52.21938328]
[1748097487724,3.91926317,2551.5,2551.4,40.47438328]
[1748097487943,3.91926317,2551.5,2551.4,52.21938328]
[1748097490726,3.91926317,2551.5,2551.4,40.47438328]
[1748097490931,3.91926317,2551.5,2551.4,52.21938328]
[1748097492926,7.47477035,2551.5,2551.4,52.21938328]
[1748097498341,8.61416073,2551.5,2551.4,23.97701752]
[1748097498509,8.61416073,2551.5,2551.4,52.21738328]
[1748097498710,7.47477035,2551.5,2551.4,52.21738328]
[1748097504149,7.47477035,2551.5,2551.4,23.97701752]
[1748097504453,9.03617035,2551.5,2551.4,50.37701752]
[1748097505855,7.05973292,2551.5,2551.4,50.37701752]
[1748097506230,7.05973292,2551.5,2551.4,50.00187657]
[1748097506444,8.15761956,2551.5,2551.4,50.00187657]
[1748097506626,8.15761956,2551.5,2551.4,48.69069773]
[1748097509566,8.15761956,2551.5,2551.4,48.69169773]
[1748097519302,0.05,2551.9,2551.5,0.55]
[1748097519460,0.05,2551.9,2551.8,14.30916817]
[1748097519669,0.05,2551.9,2551.8,17.00731998]
[1748097520198,0.05,2551.9,2551.8,13.95617023]
[1748097520498,0.05,2551.9,2551.8,26.33804121]
[1748097520997,0.05,2551.9,2551.8,27.14950693]
[1748097522377,0.05,2551.9,2551.8,28.98987269]
[1748097524604,0.05,2551.9,2551.8,28.52332074]
[1748097527635,0.05,2551.9,2551.8,14.93795498]
[1748097527774,0.05,2551.9,2551.8,25.23161828]
[1748097529300,0.05,2551.9,2551.8,56.78461828]
[1748097529820,0.05,2551.9,2551.8,59.26185502]
[1748097530102,3.96711562,2552.9,2552.6,1.84036576]
[1748097530271,3.96711562,2552.9,2552.8,8.0]
[1748097530600,3.96711562,2552.9,2552.8,51.295]
[1748097530768,5.11576197,2552.9,2552.8,51.295]
[1748097533309,3.96711562,2552.9,2552.8,51.295]
[1748097539917,3.96711562,2552.9,2552.8,51.347]
[1748097541999,5.55741562,2552.9,2552.8,51.347]
[1748097544944,5.55741562,2552.9,2552.8,50.03648547]
[1748097547844,5.55741562,2552.9,2552.8,38.29648547]
[1748097548037,6.50485576,2552.9,2552.8,50.03648547]
[1748097559278,3.96711562,2552.9,2552.8,50.03648547]
[1748097566091,0.05,2552.9,2552.8,50.03648547]
[1748097567595,0.05,2552.9,2552.8,50.41011441]
[1748097568292,0.05,2552.9,2552.8,51.70716713]
[1748097568490,0.05,2552.9,2552.8,53.54753289]
[1748097574822,0.05,2552.9,2552.8,52.84866191]
[1748097576019,0.05,2552.9,2552.8,26.47166191]
[1748097576220,3.96711387,2552.9,2552.8,52.84866191]
[1748097576423,0.05,2552.9,2552.8,52.84866191]
[1748097577529,3.96711387,2552.9,2552.8,52.84866191]
[1748097577831,0.05,2552.9,2552.8,52.84866191]
[1748097578829,3.96711387,2552.9,2552.8,33.7609947]
[1748097579026,3.96711387,2552.9,2552.8,45.4979947]
[1748097579224,3.96711387,2552.9,2552.8,53.4979947]
[1748097579529,3.96711387,2552.9,2552.8,53.12436576]
[1748097582129,3.96711387,2552.9,2552.8,26.74836576]
[1748097582440,6.25652935,2552.9,2552.8,53.12536576]
[1748097583201,5.46811387,2552.9,2552.8,53.12536576]
[1748097585237,1.551,2552.9,2552.8,53.12536576]
[1748097585437,0.05,2552.9,2552.8,54.42241848]
[1748097586318,3.96711387,2552.9,2552.8,54.42241848]
[1748097587615,3.96711387,2552.9,2552.8,54.79560458]
[1748097594832,3.96711387,2552.9,2552.8,28.41860458]
[1748097595034,3.96711387,2552.9,2552.8,54.79560458]
[1748097596454,3.96711387,2552.9,2552.8,54.79460458]
[1748097597325,3.96711387,2552.9,2552.8,54.13442284]
[1748097601554,5.59881387,2552.9,2552.8,51.6541861]
[1748097601860,6.55039368,2552.9,2552.8,51.6541861]
[1748097602683,6.55039368,2552.9,2552.8,51.281]
[1748097604879,6.55039368,2552.9,2552.8,43.282]
[1748097605081,6.55039368,2552.9,2552.8,51.282]
[1748097607181,8.12746564,2552.9,2552.8,51.282]
[1748097608186,8.12746564,2552.9,2552.8,24.908]
[1748097608396,8.12746564,2552.9,2552.8,51.283]
[1748097610795,8.12746564,2552.9,2552.8,31.545]